[Event "*** Titled Tuesday Blitz"]
[Site "Chess.com"]
[Date "2020.05.05"]
[Round "5"]
[White "El_ultimo_Pablo"]
[Black "icychess54"]
[Result "0-1"]
[WhiteElo "2455"]
[BlackElo "2298"]
[TimeControl "180+1"]
[EndTime "10:57:29 PDT"]
[Termination "icychess54 won on time"]

1. d4 {[%clk 0:03:00.9]} 1... d5 {[%clk 0:02:59.7]} 2. c4 {[%clk 0:03:00.8]}
2... c6 {[%clk 0:02:59.6]} 3. Nf3 {[%clk 0:03:01.3]} 3... Nf6 {[%clk 0:03:00.1]}
4. Nc3 {[%clk 0:03:01.7]} 4... e6 {[%clk 0:03:00.4]} 5. Bg5 {[%clk 0:03:00.9]}
5... Nbd7 {[%clk 0:03:00.7]} 6. e3 {[%clk 0:03:00.7]} 6... Qa5 {[%clk
0:03:00.5]} 7. Rc1 {[%clk 0:02:57.5]} 7... Ne4 {[%clk 0:02:58.6]} 8. Bh4 {[%clk
0:02:52.8]} 8... Bb4 {[%clk 0:02:56.5]} 9. Qc2 {[%clk 0:02:32.5]} 9... Qxa2
{[%clk 0:02:50.9]} 10. Bd3 {[%clk 0:02:29.6]} 10... Bxc3+ {[%clk 0:02:40.6]} 11.
bxc3 {[%clk 0:02:25.5]} 11... Qxc2 {[%clk 0:02:41.1]} 12. Rxc2 {[%clk
0:02:23.7]} 12... O-O {[%clk 0:02:35]} 13. Bxe4 {[%clk 0:02:17.5]} 13... dxe4
{[%clk 0:02:35]} 14. Nd2 {[%clk 0:02:17.5]} 14... f5 {[%clk 0:02:33.8]} 15. Ke2
{[%clk 0:02:07.5]} 15... b6 {[%clk 0:02:29.1]} 16. Ra1 {[%clk 0:02:05.1]} 16...
a5 {[%clk 0:02:23.5]} 17. Rb2 {[%clk 0:01:55.7]} 17... Ba6 {[%clk 0:02:19.4]}
18. Bg3 {[%clk 0:01:49.8]} 18... Rfc8 {[%clk 0:02:16.4]} 19. Kd1 {[%clk
0:01:40.1]} 19... Kf7 {[%clk 0:01:58.1]} 20. Kc1 {[%clk 0:01:31.2]} 20... Ke7
{[%clk 0:01:50.5]} 21. h4 {[%clk 0:01:05.7]} 21... h5 {[%clk 0:01:37.2]} 22. f3
{[%clk 0:00:52.5]} 22... exf3 {[%clk 0:01:31.9]} 23. gxf3 {[%clk 0:00:53.4]}
23... Ra7 {[%clk 0:01:24.3]} 24. Bf4 {[%clk 0:00:40.1]} 24... Rb7 {[%clk
0:00:40.9]} 25. Kc2 {[%clk 0:00:40.1]} 25... Ra7 {[%clk 0:00:38.6]} 26. c5
{[%clk 0:00:31.6]} 26... bxc5 {[%clk 0:00:33]} 27. c4 {[%clk 0:00:30.8]} 27...
cxd4 {[%clk 0:00:32.4]} 28. exd4 {[%clk 0:00:31.7]} 28... c5 {[%clk 0:00:31.1]}
29. Rxa5 {[%clk 0:00:22]} 29... cxd4 {[%clk 0:00:30.5]} 30. Rba2 {[%clk
0:00:12.4]} 30... Rc6 {[%clk 0:00:25.5]} 31. Kd1 {[%clk 0:00:09.4]} 31... Kf6
{[%clk 0:00:23.3]} 32. Bg5+ {[%clk 0:00:08.9]} 32... Kf7 {[%clk 0:00:23.1]} 33.
Bf4 {[%clk 0:00:07.4]} 33... g6 {[%clk 0:00:17.3]} 34. c5 {[%clk 0:00:04.3]}
34... e5 {[%clk 0:00:16.5]} 35. Bg3 {[%clk 0:00:03.4]} 35... Ke6 {[%clk
0:00:15.4]} 36. Be1 {[%clk 0:00:02.8]} 36... Nxc5 {[%clk 0:00:14.8]} 37. Ra1
{[%clk 0:00:01.5]} 37... Nd3 {[%clk 0:00:13]} 38. f4 {[%clk 0:00:01.5]} 38...
Nxe1 {[%clk 0:00:12.7]} 39. Kxe1 {[%clk 0:00:01.8]} 39... e4 {[%clk 0:00:13.2]}
40. Kd1 {[%clk 0:00:02.3]} 40... e3 {[%clk 0:00:12.7]} 41. Nb3 {[%clk
0:00:02.8]} 41... Rd6 {[%clk 0:00:12.1]} 42. Nc1 {[%clk 0:00:02.8]} 42... d3
{[%clk 0:00:10.4]} 43. Na2 {[%clk 0:00:01.8]} 43... d2 {[%clk 0:00:10]} 0-1

[Event "*** Titled Tuesday Blitz"]
[Site "Chess.com"]
[Date "2020.05.05"]
[Round "5"]
[White "11kevin"]
[Black "Xeslu"]
[Result "1-0"]
[WhiteElo "2525"]
[BlackElo "2365"]
[TimeControl "180+1"]
[EndTime "10:57:30 PDT"]
[Termination "11kevin won on time"]

1. Nf3 {[%clk 0:03:00.9]} 1... d5 {[%clk 0:02:57.9]} 2. c4 {[%clk 0:03:00.7]}
2... c6 {[%clk 0:02:51]} 3. d4 {[%clk 0:03:00.1]} 3... Nf6 {[%clk 0:02:50.3]} 4.
Qc2 {[%clk 0:02:59.9]} 4... dxc4 {[%clk 0:02:48.9]} 5. Qxc4 {[%clk 0:02:59.7]}
5... Bf5 {[%clk 0:02:48.5]} 6. g3 {[%clk 0:02:59.2]} 6... e6 {[%clk 0:02:48.4]}
7. Bg2 {[%clk 0:02:59.7]} 7... Nbd7 {[%clk 0:02:48.1]} 8. O-O {[%clk 0:02:59.9]}
8... Be7 {[%clk 0:02:45.1]} 9. e3 {[%clk 0:02:58]} 9... h6 {[%clk 0:02:39.2]}
10. Nc3 {[%clk 0:02:58.1]} 10... Bc2 {[%clk 0:02:30.2]} 11. Ne5 {[%clk 0:02:50]}
11... Nb6 {[%clk 0:02:22.5]} 12. Qe2 {[%clk 0:02:45.4]} 12... Bh7 {[%clk
0:02:20.8]} 13. Rd1 {[%clk 0:02:32.3]} 13... O-O {[%clk 0:02:15.9]} 14. e4
{[%clk 0:02:30.8]} 14... Nfd7 {[%clk 0:01:55.7]} 15. Nd3 {[%clk 0:02:24.4]}
15... a5 {[%clk 0:01:42.1]} 16. a4 {[%clk 0:02:19.6]} 16... Qc7 {[%clk
0:01:21.4]} 17. Bf4 {[%clk 0:02:17.1]} 17... Bd6 {[%clk 0:01:19.7]} 18. e5
{[%clk 0:02:09.1]} 18... Bb4 {[%clk 0:01:09.7]} 19. Rac1 {[%clk 0:02:07.1]}
19... Qd8 {[%clk 0:01:01]} 20. Nc5 {[%clk 0:02:04.6]} 20... Rb8 {[%clk
0:00:52.2]} 21. N3e4 {[%clk 0:01:54.7]} 21... Nd5 {[%clk 0:00:46.6]} 22. Bd2
{[%clk 0:01:54.1]} 22... Qe7 {[%clk 0:00:24.8]} 23. Nd6 {[%clk 0:01:49.9]} 23...
Nxc5 {[%clk 0:00:17.4]} 24. dxc5 {[%clk 0:01:49.7]} 24... Bxd2 {[%clk
0:00:17.4]} 25. Qxd2 {[%clk 0:01:49.6]} 25... Ra8 {[%clk 0:00:16.5]} 26. Bxd5
{[%clk 0:01:47.2]} 26... exd5 {[%clk 0:00:15.8]} 27. Re1 {[%clk 0:01:45.7]}
27... Rfd8 {[%clk 0:00:14.9]} 28. f4 {[%clk 0:01:45.2]} 28... f6 {[%clk
0:00:13.5]} 29. e6 {[%clk 0:01:40.2]} 29... Bg6 {[%clk 0:00:13.4]} 30. f5 {[%clk
0:01:39.9]} 30... Be8 {[%clk 0:00:14.3]} 31. b4 {[%clk 0:01:31]} 31... Rdb8
{[%clk 0:00:14.6]} 32. b5 {[%clk 0:01:29.2]} 32... b6 {[%clk 0:00:11.5]} 33.
Nxe8 {[%clk 0:01:21.9]} 33... Qxe8 {[%clk 0:00:10.7]} 34. cxb6 {[%clk
0:01:21.5]} 34... Rxb6 {[%clk 0:00:10.7]} 35. Qd4 {[%clk 0:01:19.9]} 35... Rab8
{[%clk 0:00:10.4]} 36. e7 {[%clk 0:01:17.6]} 36... cxb5 {[%clk 0:00:10.4]} 37.
Qxd5+ {[%clk 0:01:17.9]} 37... Kh8 {[%clk 0:00:10.2]} 38. axb5 {[%clk
0:01:09.8]} 38... Rxb5 {[%clk 0:00:10.2]} 39. Rc5 {[%clk 0:01:08.5]} 39... Rb2
{[%clk 0:00:08.9]} 40. Rc7 {[%clk 0:01:03]} 40... Kh7 {[%clk 0:00:08.6]} 41. Qc6
{[%clk 0:00:58.9]} 41... Qh5 {[%clk 0:00:07.7]} 42. Qh1 {[%clk 0:00:49.6]} 42...
Re8 {[%clk 0:00:06.4]} 43. Rc4 {[%clk 0:00:44.9]} 43... Re2 {[%clk 0:00:06.2]}
44. Re4 {[%clk 0:00:40.3]} 44... Rxe4 {[%clk 0:00:04.6]} 45. Qxe4 {[%clk
0:00:36.5]} 45... Qf7 {[%clk 0:00:03.1]} 46. Kg2 {[%clk 0:00:34.3]} 46... a4
{[%clk 0:00:03.2]} 47. g4 {[%clk 0:00:26.5]} 47... a3 {[%clk 0:00:03]} 48. h4
{[%clk 0:00:27.1]} 48... a2 {[%clk 0:00:02.6]} 49. g5 {[%clk 0:00:27.5]} 49...
fxg5 {[%clk 0:00:01.4]} 50. hxg5 {[%clk 0:00:28.4]} 1-0

[Event "*** Titled Tuesday Blitz"]
[Site "Chess.com"]
[Date "2020.05.05"]
[Round "5"]
[White "RobPeresian"]
[Black "Azoulas1"]
[Result "1-0"]
[WhiteElo "2284"]
[BlackElo "1903"]
[TimeControl "180+1"]
[EndTime "10:57:30 PDT"]
[Termination "RobPeresian won on time"]

1. e4 {[%clk 0:03:00.8]} 1... c5 {[%clk 0:02:59.1]} 2. Nf3 {[%clk 0:03:00.6]}
2... e6 {[%clk 0:02:57.4]} 3. c4 {[%clk 0:03:00.4]} 3... Nc6 {[%clk 0:02:55.2]}
4. Nc3 {[%clk 0:02:59.8]} 4... d6 {[%clk 0:02:46.8]} 5. d4 {[%clk 0:02:59.4]}
5... cxd4 {[%clk 0:02:42.7]} 6. Nxd4 {[%clk 0:03:00.3]} 6... Nf6 {[%clk
0:02:42.4]} 7. Be3 {[%clk 0:02:58]} 7... Be7 {[%clk 0:02:42.1]} 8. Be2 {[%clk
0:02:57.9]} 8... Qc7 {[%clk 0:02:41.2]} 9. Rc1 {[%clk 0:02:57]} 9... a6 {[%clk
0:02:41]} 10. O-O {[%clk 0:02:43.6]} 10... O-O {[%clk 0:02:38.6]} 11. Nd5 {[%clk
0:02:40.3]} 11... exd5 {[%clk 0:02:25.4]} 12. cxd5 {[%clk 0:02:41.2]} 12... Bd7
{[%clk 0:02:24.2]} 13. f3 {[%clk 0:02:32.8]} 13... Rab8 {[%clk 0:02:17.6]} 14.
Qd2 {[%clk 0:02:24.8]} 14... Bd8 {[%clk 0:02:06]} 15. dxc6 {[%clk 0:01:50.9]}
15... bxc6 {[%clk 0:02:03.9]} 16. b4 {[%clk 0:01:18.5]} 16... Qb7 {[%clk
0:01:54.7]} 17. a3 {[%clk 0:01:18]} 17... Bc7 {[%clk 0:01:47.4]} 18. Rfd1 {[%clk
0:01:17]} 18... d5 {[%clk 0:01:44.4]} 19. Nb3 {[%clk 0:01:08.2]} 19... Bb6
{[%clk 0:01:28.9]} 20. Nc5 {[%clk 0:01:06.7]} 20... Bxc5 {[%clk 0:01:26.4]} 21.
Bxc5 {[%clk 0:01:07.6]} 21... Rfe8 {[%clk 0:01:23.6]} 22. exd5 {[%clk
0:01:05.6]} 22... Nxd5 {[%clk 0:01:20.6]} 23. Bd3 {[%clk 0:01:05.5]} 23... Qc7
{[%clk 0:01:04.9]} 24. Re1 {[%clk 0:01:05]} 24... Nf4 {[%clk 0:00:59.9]} 25. Be4
{[%clk 0:01:00.8]} 25... Be6 {[%clk 0:00:51.3]} 26. Qd6 {[%clk 0:00:58.2]} 26...
Qxd6 {[%clk 0:00:24.8]} 27. Bxd6 {[%clk 0:00:58.8]} 27... Nd5 {[%clk 0:00:24.8]}
28. Bxb8 {[%clk 0:00:57.7]} 28... Rxb8 {[%clk 0:00:23.6]} 29. Rxc6 {[%clk
0:00:58.1]} 29... g6 {[%clk 0:00:21]} 30. Rxa6 {[%clk 0:00:57.8]} 30... Nc3
{[%clk 0:00:19.6]} 31. Kf2 {[%clk 0:00:54.4]} 31... Bc4 {[%clk 0:00:18.2]} 32.
Rc6 {[%clk 0:00:51.6]} 32... Nxe4+ {[%clk 0:00:14.8]} 33. fxe4 {[%clk
0:00:52.5]} 33... Bb5 {[%clk 0:00:13.6]} 34. Rc5 {[%clk 0:00:51.9]} 34... Ba4
{[%clk 0:00:13.4]} 35. e5 {[%clk 0:00:51]} 35... h5 {[%clk 0:00:12.4]} 36. e6
{[%clk 0:00:50.7]} 36... fxe6 {[%clk 0:00:08.7]} 37. Rxe6 {[%clk 0:00:51.2]}
37... Rf8+ {[%clk 0:00:09.1]} 38. Kg3 {[%clk 0:00:50]} 38... Kh7 {[%clk
0:00:08.3]} 39. Ra5 {[%clk 0:00:42.4]} 39... Bb3 {[%clk 0:00:05.9]} 40. Rd6
{[%clk 0:00:37.2]} 40... Bc4 {[%clk 0:00:05.4]} 41. Rc5 {[%clk 0:00:34.7]} 41...
Bb3 {[%clk 0:00:04.4]} 42. Rc7+ {[%clk 0:00:34.1]} 42... Kh6 {[%clk 0:00:02.1]}
43. h4 {[%clk 0:00:33.6]} 1-0

[Event "*** Titled Tuesday Blitz"]
[Site "Chess.com"]
[Date "2020.05.05"]
[Round "5"]
[White "Angel_Hranitel_37"]
[Black "FedaMaster"]
[Result "0-1"]
[WhiteElo "2376"]
[BlackElo "2534"]
[TimeControl "180+1"]
[EndTime "10:57:32 PDT"]
[Termination "FedaMaster won by checkmate"]

1. d4 {[%clk 0:03:00.9]} 1... Nf6 {[%clk 0:02:59.7]} 2. Nf3 {[%clk 0:03:00.6]}
2... g6 {[%clk 0:03:00]} 3. g3 {[%clk 0:03:01.3]} 3... Bg7 {[%clk 0:03:00.3]} 4.
Bg2 {[%clk 0:03:02.2]} 4... O-O {[%clk 0:03:00.9]} 5. O-O {[%clk 0:03:02.9]}
5... d5 {[%clk 0:03:01.8]} 6. Nc3 {[%clk 0:03:03]} 6... c6 {[%clk 0:02:07.8]} 7.
b3 {[%clk 0:03:00.9]} 7... Bf5 {[%clk 0:01:57.4]} 8. Bb2 {[%clk 0:03:00.3]} 8...
Ne4 {[%clk 0:01:54.6]} 9. Nh4 {[%clk 0:02:37.6]} 9... Nxc3 {[%clk 0:01:54.2]}
10. Bxc3 {[%clk 0:02:38.5]} 10... Be6 {[%clk 0:01:36.3]} 11. Bb2 {[%clk
0:02:36.1]} 11... c5 {[%clk 0:01:16.4]} 12. Nf3 {[%clk 0:02:33.5]} 12... Nc6
{[%clk 0:01:14.9]} 13. Rb1 {[%clk 0:02:24.6]} 13... Qa5 {[%clk 0:00:39.1]} 14.
dxc5 {[%clk 0:02:18.1]} 14... Bxb2 {[%clk 0:00:30.8]} 15. Rxb2 {[%clk 0:02:19]}
15... Qxc5 {[%clk 0:00:30.9]} 16. Qd2 {[%clk 0:02:06.4]} 16... f6 {[%clk
0:00:25.8]} 17. c3 {[%clk 0:01:58.1]} 17... Bf7 {[%clk 0:00:22.4]} 18. Rd1
{[%clk 0:01:45.9]} 18... Rfd8 {[%clk 0:00:22]} 19. Rc2 {[%clk 0:00:40.2]} 19...
Rac8 {[%clk 0:00:21.7]} 20. Qf4 {[%clk 0:00:39.5]} 20... Kg7 {[%clk 0:00:20.6]}
21. Rcc1 {[%clk 0:00:34.9]} 21... e5 {[%clk 0:00:20.6]} 22. Qh4 {[%clk
0:00:27.4]} 22... Rc7 {[%clk 0:00:17.9]} 23. g4 {[%clk 0:00:27]} 23... g5 {[%clk
0:00:16.3]} 24. Qg3 {[%clk 0:00:25.8]} 24... Bg6 {[%clk 0:00:15.8]} 25. h4
{[%clk 0:00:25.8]} 25... h6 {[%clk 0:00:15.6]} 26. hxg5 {[%clk 0:00:25.4]} 26...
hxg5 {[%clk 0:00:16.5]} 27. Ne1 {[%clk 0:00:18.2]} 27... Rcd7 {[%clk 0:00:16]}
28. Nd3 {[%clk 0:00:17.1]} 28... Qe7 {[%clk 0:00:16.4]} 29. Nb4 {[%clk
0:00:13.6]} 29... Nxb4 {[%clk 0:00:15.7]} 30. cxb4 {[%clk 0:00:14.5]} 30... Qxb4
{[%clk 0:00:16.2]} 31. Qe3 {[%clk 0:00:13.1]} 31... Qxg4 {[%clk 0:00:14.6]} 32.
Qxa7 {[%clk 0:00:10.3]} 32... Qxe2 {[%clk 0:00:12.1]} 33. a4 {[%clk 0:00:03.8]}
33... Qg4 {[%clk 0:00:10.2]} 34. Kf1 {[%clk 0:00:02.8]} 34... Be4 {[%clk
0:00:09.7]} 35. Bxe4 {[%clk 0:00:02.7]} 35... Qxe4 {[%clk 0:00:10.1]} 36. Qb6
{[%clk 0:00:02.8]} 36... Qh1+ {[%clk 0:00:09.9]} 37. Ke2 {[%clk 0:00:02.9]}
37... Qe4+ {[%clk 0:00:10.8]} 38. Kf1 {[%clk 0:00:03.6]} 38... Kg6 {[%clk
0:00:10.7]} 39. Rc3 {[%clk 0:00:02]} 39... Qh1+ {[%clk 0:00:09.4]} 40. Ke2
{[%clk 0:00:02.3]} 40... Qh5+ {[%clk 0:00:10.1]} 41. f3 {[%clk 0:00:02.2]} 41...
d4 {[%clk 0:00:10]} 42. Rcd3 {[%clk 0:00:01.9]} 42... Qh2+ {[%clk 0:00:09.7]}
43. Ke1 {[%clk 0:00:02.6]} 43... Rh8 {[%clk 0:00:09.2]} 44. R1d2 {[%clk
0:00:01.4]} 44... Qg1+ {[%clk 0:00:09.1]} 45. Ke2 {[%clk 0:00:01.9]} 45... Rh2#
{[%clk 0:00:09.6]} 0-1

[Event "*** Titled Tuesday Blitz"]
[Site "Chess.com"]
[Date "2020.05.05"]
[Round "5"]
[White "RubensCezila"]
[Black "ajdemipopushi"]
[Result "1-0"]
[WhiteElo "2476"]
[BlackElo "2278"]
[TimeControl "180+1"]
[EndTime "10:57:32 PDT"]
[Termination "RubensCezila won on time"]

1. c4 {[%clk 0:03:00.9]} 1... c5 {[%clk 0:02:59.4]} 2. Nc3 {[%clk 0:03:01.1]}
2... g6 {[%clk 0:03:00]} 3. b3 {[%clk 0:02:59.3]} 3... Bg7 {[%clk 0:03:00.1]} 4.
Bb2 {[%clk 0:02:59.1]} 4... Nc6 {[%clk 0:03:00.6]} 5. e3 {[%clk 0:02:59.3]} 5...
e6 {[%clk 0:03:00.5]} 6. Nf3 {[%clk 0:02:58.8]} 6... Nge7 {[%clk 0:03:00.2]} 7.
Be2 {[%clk 0:02:45]} 7... O-O {[%clk 0:02:58.7]} 8. O-O {[%clk 0:02:45]} 8... b6
{[%clk 0:02:45]} 9. a3 {[%clk 0:02:40.7]} 9... Bb7 {[%clk 0:02:44.7]} 10. Qc2
{[%clk 0:02:40.8]} 10... Rc8 {[%clk 0:02:44.1]} 11. Rad1 {[%clk 0:02:36.4]}
11... d5 {[%clk 0:02:43.1]} 12. Nb5 {[%clk 0:02:29.8]} 12... d4 {[%clk
0:02:30.6]} 13. exd4 {[%clk 0:02:07.8]} 13... cxd4 {[%clk 0:02:30.7]} 14. Qe4
{[%clk 0:02:05]} 14... Qd7 {[%clk 0:02:13.4]} 15. a4 {[%clk 0:01:42.1]} 15... a6
{[%clk 0:01:04.7]} 16. Na3 {[%clk 0:01:38]} 16... d3 {[%clk 0:01:04.9]} 17. Bxg7
{[%clk 0:01:25.6]} 17... dxe2 {[%clk 0:01:04.7]} 18. Bf6 {[%clk 0:01:13.6]}
18... exf1=Q+ {[%clk 0:01:03.4]} 19. Rxf1 {[%clk 0:01:13.3]} 19... Nf5 {[%clk
0:00:54.6]} 20. Qg4 {[%clk 0:00:49.7]} 20... h5 {[%clk 0:00:42.7]} 21. Qg5
{[%clk 0:00:47.4]} 21... Kh7 {[%clk 0:00:34.5]} 22. g4 {[%clk 0:00:37.1]} 22...
Ng7 {[%clk 0:00:20.1]} 23. Qf4 {[%clk 0:00:24.7]} 23... Rh8 {[%clk 0:00:15]} 24.
Ng5+ {[%clk 0:00:18.1]} 24... Kg8 {[%clk 0:00:14.2]} 25. d4 {[%clk 0:00:19]}
25... Nd8 {[%clk 0:00:11.7]} 26. d5 {[%clk 0:00:16.3]} 26... hxg4 {[%clk
0:00:11.2]} 27. Rd1 {[%clk 0:00:14.7]} 27... Rh5 {[%clk 0:00:09.9]} 28. Nc2
{[%clk 0:00:14.1]} 28... Nf5 {[%clk 0:00:09.6]} 29. Ne3 {[%clk 0:00:12]} 29...
exd5 {[%clk 0:00:09.6]} 30. Nxg4 {[%clk 0:00:11]} 30... Ne6 {[%clk 0:00:07.9]}
31. Nxe6 {[%clk 0:00:09.8]} 31... Qxe6 {[%clk 0:00:07.9]} 32. Ba1 {[%clk
0:00:10.2]} 32... dxc4 {[%clk 0:00:07.6]} 33. Nf6+ {[%clk 0:00:09.9]} 33... Kf8
{[%clk 0:00:06.1]} 34. Nd7+ {[%clk 0:00:10.1]} 34... Kg8 {[%clk 0:00:04.8]} 35.
Nf6+ {[%clk 0:00:10.3]} 35... Kf8 {[%clk 0:00:05.2]} 36. Nd7+ {[%clk 0:00:08.1]}
36... Ke7 {[%clk 0:00:05.3]} 37. Bb2 {[%clk 0:00:06]} 37... Qe4 {[%clk
0:00:05.5]} 38. Ba3+ {[%clk 0:00:06.3]} 38... Kd8 {[%clk 0:00:05.2]} 39. Nf6+
{[%clk 0:00:05.9]} 39... Bd5 {[%clk 0:00:01.1]} 40. Qxe4 {[%clk 0:00:04.5]} 1-0

[Event "*** Titled Tuesday Blitz"]
[Site "Chess.com"]
[Date "2020.05.05"]
[Round "5"]
[White "SARGISMV"]
[Black "Aygehovit1992"]
[Result "0-1"]
[WhiteElo "2450"]
[BlackElo "2681"]
[TimeControl "180+1"]
[EndTime "10:57:33 PDT"]
[Termination "Aygehovit1992 won by resignation"]

1. d4 {[%clk 0:03:00.9]} 1... d6 {[%clk 0:02:59.3]} 2. Nf3 {[%clk 0:03:00]} 2...
g6 {[%clk 0:02:59.4]} 3. c4 {[%clk 0:02:59.1]} 3... Bg7 {[%clk 0:02:59.8]} 4.
Nc3 {[%clk 0:02:58.4]} 4... Nc6 {[%clk 0:02:57.7]} 5. d5 {[%clk 0:02:41.9]} 5...
Nb8 {[%clk 0:02:57.3]} 6. e4 {[%clk 0:02:40.7]} 6... Nd7 {[%clk 0:02:55.5]} 7.
Be3 {[%clk 0:02:39.7]} 7... Ngf6 {[%clk 0:02:55.2]} 8. h3 {[%clk 0:02:35]} 8...
c6 {[%clk 0:02:54.7]} 9. Bd3 {[%clk 0:02:25.6]} 9... O-O {[%clk 0:02:54.2]} 10.
O-O {[%clk 0:02:24.7]} 10... Nc5 {[%clk 0:02:53.9]} 11. Bc2 {[%clk 0:02:24.1]}
11... a5 {[%clk 0:02:52.8]} 12. Re1 {[%clk 0:02:01.7]} 12... cxd5 {[%clk
0:02:13.2]} 13. exd5 {[%clk 0:01:59.1]} 13... Bd7 {[%clk 0:02:11.9]} 14. Qe2
{[%clk 0:01:33.6]} 14... Re8 {[%clk 0:02:10.8]} 15. Rad1 {[%clk 0:01:19.6]}
15... a4 {[%clk 0:02:04.8]} 16. Bd4 {[%clk 0:01:08.2]} 16... Qa5 {[%clk
0:02:03]} 17. Qd2 {[%clk 0:00:39.7]} 17... Rac8 {[%clk 0:01:54.6]} 18. Re3
{[%clk 0:00:38.2]} 18... Na6 {[%clk 0:01:47.6]} 19. Qe2 {[%clk 0:00:37.4]} 19...
e5 {[%clk 0:01:22.3]} 20. dxe6 {[%clk 0:00:38.3]} 20... Bxe6 {[%clk 0:01:22.2]}
21. b3 {[%clk 0:00:27.8]} 21... axb3 {[%clk 0:01:17.3]} 22. axb3 {[%clk
0:00:28.7]} 22... Nb4 {[%clk 0:01:16.3]} 23. Re1 {[%clk 0:00:20.2]} 23... Nxc2
{[%clk 0:01:15.2]} 24. Qxc2 {[%clk 0:00:21.1]} 24... d5 {[%clk 0:00:55]} 25. Qb2
{[%clk 0:00:15.9]} 25... dxc4 {[%clk 0:00:52.4]} 26. bxc4 {[%clk 0:00:16.3]}
26... Bxc4 {[%clk 0:00:50.8]} 27. Rxe8+ {[%clk 0:00:14.8]} 27... Rxe8 {[%clk
0:00:46.5]} 28. Rxe8+ {[%clk 0:00:12.2]} 28... Nxe8 {[%clk 0:00:47.4]} 29. Bxg7
{[%clk 0:00:10.6]} 29... Nxg7 {[%clk 0:00:19.7]} 30. Qxb7 {[%clk 0:00:10]} 30...
Ne8 {[%clk 0:00:08.7]} 31. Qc8 {[%clk 0:00:09.5]} 31... Qxc3 {[%clk 0:00:08.7]}
32. Qxe8+ {[%clk 0:00:09.3]} 32... Kg7 {[%clk 0:00:09.4]} 33. Qe5+ {[%clk
0:00:09.8]} 33... Qxe5 {[%clk 0:00:09.2]} 34. Nxe5 {[%clk 0:00:10.7]} 34... Bd5
{[%clk 0:00:10.1]} 35. Nd3 {[%clk 0:00:10.6]} 35... f6 {[%clk 0:00:10.6]} 36. f3
{[%clk 0:00:10.9]} 36... g5 {[%clk 0:00:09.6]} 37. Kf2 {[%clk 0:00:11.1]} 37...
h5 {[%clk 0:00:10]} 38. g3 {[%clk 0:00:09.8]} 38... Kg6 {[%clk 0:00:10]} 39. h4
{[%clk 0:00:10.1]} 39... Kf5 {[%clk 0:00:09.6]} 40. Ke3 {[%clk 0:00:09]} 40...
Ba8 {[%clk 0:00:09]} 41. Nf4 {[%clk 0:00:09.1]} 41... gxf4+ {[%clk 0:00:08.7]}
42. gxf4 {[%clk 0:00:09.1]} 42... Bb7 {[%clk 0:00:08.7]} 43. Kd4 {[%clk
0:00:08.3]} 43... Kxf4 {[%clk 0:00:09]} 44. Kc5 {[%clk 0:00:08.9]} 44... Bxf3
{[%clk 0:00:09.5]} 45. Kd6 {[%clk 0:00:09.8]} 45... Bg4 {[%clk 0:00:09.8]} 46.
Ke7 {[%clk 0:00:10.7]} 46... f5 {[%clk 0:00:10.1]} 47. Kf6 {[%clk 0:00:11.6]}
47... Kg3 {[%clk 0:00:11]} 48. Kg6 {[%clk 0:00:12.2]} 48... f4 {[%clk
0:00:11.9]} 49. Kg5 {[%clk 0:00:13.1]} 49... f3 {[%clk 0:00:12.8]} 0-1

[Event "*** Titled Tuesday Blitz"]
[Site "Chess.com"]
[Date "2020.05.05"]
[Round "5"]
[White "LiamVrolijk"]
[Black "Undisputed92"]
[Result "1/2-1/2"]
[WhiteElo "2746"]
[BlackElo "2589"]
[TimeControl "180+1"]
[EndTime "10:57:34 PDT"]
[Termination "Game drawn by agreement"]

1. d4 {[%clk 0:03:00.9]} 1... Nf6 {[%clk 0:02:59.2]} 2. c4 {[%clk 0:03:01.1]}
2... e6 {[%clk 0:02:59.3]} 3. Nf3 {[%clk 0:03:01.1]} 3... Bb4+ {[%clk
0:02:59.3]} 4. Bd2 {[%clk 0:03:00.3]} 4... Qe7 {[%clk 0:02:58.1]} 5. g3 {[%clk
0:02:58.9]} 5... Nc6 {[%clk 0:02:48.6]} 6. e3 {[%clk 0:02:59]} 6... Bxd2+ {[%clk
0:02:46.3]} 7. Qxd2 {[%clk 0:02:50.8]} 7... O-O {[%clk 0:02:45.2]} 8. Bg2 {[%clk
0:02:44.8]} 8... Ne4 {[%clk 0:02:42.8]} 9. Qc2 {[%clk 0:02:44.5]} 9... Qb4+
{[%clk 0:02:42.3]} 10. Nfd2 {[%clk 0:02:42.4]} 10... Nxd2 {[%clk 0:02:35.4]} 11.
Nxd2 {[%clk 0:02:43.3]} 11... e5 {[%clk 0:02:29.4]} 12. d5 {[%clk 0:02:37.2]}
12... Nb8 {[%clk 0:02:27.4]} 13. O-O {[%clk 0:02:34.7]} 13... d6 {[%clk
0:02:27.3]} 14. a3 {[%clk 0:02:32.4]} 14... Qb6 {[%clk 0:02:26.6]} 15. b4 {[%clk
0:02:31.8]} 15... a5 {[%clk 0:02:26.7]} 16. c5 {[%clk 0:02:24.3]} 16... Qa7
{[%clk 0:02:24.6]} 17. Rab1 {[%clk 0:02:00.4]} 17... axb4 {[%clk 0:02:22.5]} 18.
axb4 {[%clk 0:02:01.3]} 18... Qa2 {[%clk 0:02:21.5]} 19. Qc3 {[%clk 0:01:53.9]}
19... Ra3 {[%clk 0:02:02.1]} 20. Rb3 {[%clk 0:01:52.5]} 20... Rxb3 {[%clk
0:01:58.9]} 21. Nxb3 {[%clk 0:01:53.4]} 21... Qe2 {[%clk 0:01:41.5]} 22. cxd6
{[%clk 0:01:43.9]} 22... cxd6 {[%clk 0:01:40.8]} 23. Qc7 {[%clk 0:01:43.4]}
23... Qb2 {[%clk 0:01:34]} 24. Qxb8 {[%clk 0:01:35.6]} 24... Qxb3 {[%clk
0:01:25]} 25. Qxd6 {[%clk 0:01:35.8]} 25... Bg4 {[%clk 0:01:22.5]} 26. Qxe5
{[%clk 0:01:30.5]} 26... Qxb4 {[%clk 0:01:19.9]} 27. h3 {[%clk 0:01:30.9]} 27...
Be2 {[%clk 0:01:19.3]} 28. Rc1 {[%clk 0:01:29.7]} 28... b5 {[%clk 0:01:12.7]}
29. d6 {[%clk 0:01:27.9]} 29... Qd2 {[%clk 0:01:10.6]} 30. Rb1 {[%clk
0:01:10.2]} 30... Bc4 {[%clk 0:01:09]} 31. Bf1 {[%clk 0:00:58]} 31... Bxf1
{[%clk 0:00:57.3]} 32. Rxf1 {[%clk 0:00:55.1]} 32... Rd8 {[%clk 0:00:57.3]} 33.
Qxb5 {[%clk 0:00:55.2]} 33... Qxd6 {[%clk 0:00:56.5]} 34. Rc1 {[%clk 0:00:49.5]}
34... h6 {[%clk 0:00:54.9]} 35. Qc4 {[%clk 0:00:43.9]} 35... Qd7 {[%clk
0:00:52.9]} 36. Kg2 {[%clk 0:00:43.8]} 36... Qb7+ {[%clk 0:00:51.4]} 37. Qc6
{[%clk 0:00:41.9]} 37... Qe7 {[%clk 0:00:49.1]} 38. Rc4 {[%clk 0:00:41.2]} 38...
Rd6 {[%clk 0:00:46.9]} 39. Qa8+ {[%clk 0:00:40.6]} 39... Kh7 {[%clk 0:00:46.5]}
40. Rf4 {[%clk 0:00:37.5]} 40... Rf6 {[%clk 0:00:42.9]} 41. Re4 {[%clk
0:00:33.7]} 41... Re6 {[%clk 0:00:41.9]} 42. Rc4 {[%clk 0:00:33.3]} 42... Qf6
{[%clk 0:00:36.5]} 43. Rc8 {[%clk 0:00:32.3]} 43... Kg6 {[%clk 0:00:33.6]} 44.
Qa4 {[%clk 0:00:26.9]} 44... Qf5 {[%clk 0:00:31.7]} 45. Qd4 {[%clk 0:00:21.6]}
45... Rxe3 {[%clk 0:00:28]} 46. Rc4 {[%clk 0:00:10.7]} 46... Re6 {[%clk
0:00:25.7]} 47. Qg4+ {[%clk 0:00:11.1]} 47... Qxg4 {[%clk 0:00:25.5]} 48. Rxg4+
{[%clk 0:00:12]} 48... Kh7 {[%clk 0:00:25.9]} 49. Rf4 {[%clk 0:00:12.4]} 49...
f6 {[%clk 0:00:26]} 50. Rf3 {[%clk 0:00:12.5]} 1/2-1/2